[Event "Early-Titled-Tuesday-Blitz-June-18-2024"]
[Site "Chess.com"]
[Date "2024.06.18"]
[Round "5"]
[White "Individoom"]
[Black "MVM2008"]
[Result "1/2-1/2"]
[WhiteElo "2791"]
[BlackElo "2596"]
[TimeControl "180+1"]
[EndTime "8:59:54 PDT"]
[Termination "Game drawn by 50-move rule"]

1. d4 {[%clk 0:03:00.9]} 1... Nf6 {[%clk 0:02:57]} 2. Bg5 {[%clk 0:02:57.6]}
2... Ne4 {[%clk 0:02:56.8]} 3. h4 {[%clk 0:02:57]} 3... h6 {[%clk 0:02:54.7]} 4.
Bf4 {[%clk 0:02:52.9]} 4... Nc6 {[%clk 0:02:54.9]} 5. Nd2 {[%clk 0:02:49.3]}
5... Nxd2 {[%clk 0:02:47.4]} 6. Qxd2 {[%clk 0:02:48.9]} 6... d6 {[%clk
0:02:47.2]} 7. d5 {[%clk 0:02:40.2]} 7... e5 {[%clk 0:02:41.7]} 8. dxc6 {[%clk
0:02:30.1]} 8... exf4 {[%clk 0:02:40.8]} 9. cxb7 {[%clk 0:02:28.6]} 9... Bxb7
{[%clk 0:02:41.7]} 10. Qxf4 {[%clk 0:02:28.4]} 10... Be7 {[%clk 0:02:35.4]} 11.
e3 {[%clk 0:02:26.1]} 11... O-O {[%clk 0:02:31.6]} 12. Nf3 {[%clk 0:02:25.1]}
12... Rb8 {[%clk 0:02:19]} 13. O-O-O {[%clk 0:02:14.5]} 13... Bf6 {[%clk
0:02:04.1]} 14. c3 {[%clk 0:02:14]} 14... c5 {[%clk 0:01:29.6]} 15. Bd3 {[%clk
0:02:01]} 15... Qa5 {[%clk 0:01:19.8]} 16. Qc4 {[%clk 0:01:21.3]} 16... Bxf3
{[%clk 0:00:50.4]} 17. gxf3 {[%clk 0:01:19]} 17... d5 {[%clk 0:00:50]} 18. Qa6
{[%clk 0:01:10.3]} 18... Qc7 {[%clk 0:00:35.6]} 19. Bc2 {[%clk 0:01:05.1]} 19...
d4 {[%clk 0:00:14.8]} 20. Qd3 {[%clk 0:00:55.7]} 20... g6 {[%clk 0:00:06.1]} 21.
exd4 {[%clk 0:00:55.4]} 21... cxd4 {[%clk 0:00:03.9]} 22. cxd4 {[%clk
0:00:55.7]} 22... Qf4+ {[%clk 0:00:01.6]} 23. Kb1 {[%clk 0:00:55.2]} 23... Rb4
{[%clk 0:00:02.5]} 24. Qe4 {[%clk 0:00:52]} 24... Qxe4 {[%clk 0:00:02.6]} 25.
fxe4 {[%clk 0:00:50.8]} 25... Rxd4 {[%clk 0:00:03.3]} 26. f4 {[%clk 0:00:48.8]}
26... Rxd1+ {[%clk 0:00:02]} 27. Rxd1 {[%clk 0:00:45.9]} 27... Bxh4 {[%clk
0:00:02]} 28. e5 {[%clk 0:00:45]} 28... Bg3 {[%clk 0:00:02.3]} 29. Rf1 {[%clk
0:00:43.6]} 29... g5 {[%clk 0:00:02.3]} 30. fxg5 {[%clk 0:00:42.7]} 30... hxg5
{[%clk 0:00:03.2]} 31. Rf5 {[%clk 0:00:41.6]} 31... Bf4 {[%clk 0:00:03.1]} 32.
Bb3 {[%clk 0:00:41.5]} 32... Kg7 {[%clk 0:00:03.2]} 33. e6 {[%clk 0:00:40.9]}
33... fxe6 {[%clk 0:00:02.9]} 34. Rxf8 {[%clk 0:00:41.1]} 34... Kxf8 {[%clk
0:00:03.8]} 35. Bxe6 {[%clk 0:00:41.5]} 35... Ke7 {[%clk 0:00:04.7]} 36. Bg4
{[%clk 0:00:41]} 36... Kd6 {[%clk 0:00:04.9]} 37. Kc2 {[%clk 0:00:41.3]} 37...
Be5 {[%clk 0:00:04.6]} 38. b3 {[%clk 0:00:41.2]} 38... Kd5 {[%clk 0:00:04.5]}
39. Kd3 {[%clk 0:00:41.4]} 39... Kc5 {[%clk 0:00:04.9]} 40. a3 {[%clk
0:00:39.8]} 40... Bb2 {[%clk 0:00:04.5]} 41. a4 {[%clk 0:00:40]} 41... Kb4
{[%clk 0:00:04.4]} 42. Kc2 {[%clk 0:00:40.4]} 42... Be5 {[%clk 0:00:04.6]} 43.
Bf5 {[%clk 0:00:40.6]} 43... Bf4 {[%clk 0:00:05.5]} 44. Be6 {[%clk 0:00:40.3]}
44... a5 {[%clk 0:00:05.6]} 45. Kd3 {[%clk 0:00:40.1]} 45... Bc1 {[%clk
0:00:05.2]} 46. Ke2 {[%clk 0:00:39.8]} 46... Bf4 {[%clk 0:00:06.1]} 47. Kf3
{[%clk 0:00:40]} 47... Ka3 {[%clk 0:00:06.6]} 48. Kg4 {[%clk 0:00:40.2]} 48...
Kb4 {[%clk 0:00:07.5]} 49. Kf5 {[%clk 0:00:40.5]} 49... Ka3 {[%clk 0:00:07.9]}
50. Ke4 {[%clk 0:00:40.9]} 50... Kb4 {[%clk 0:00:08.3]} 51. Kd3 {[%clk
0:00:40.2]} 51... Kc5 {[%clk 0:00:08.2]} 52. Kc3 {[%clk 0:00:40.1]} 52... Be5+
{[%clk 0:00:08.7]} 53. Kd3 {[%clk 0:00:40.2]} 53... Bf4 {[%clk 0:00:09.2]} 54.
Ke4 {[%clk 0:00:40]} 54... Kd6 {[%clk 0:00:09.5]} 55. Bg4 {[%clk 0:00:39.7]}
55... Kc5 {[%clk 0:00:09.9]} 56. Be6 {[%clk 0:00:38]} 56... Kd6 {[%clk
0:00:10.2]} 57. Bc4 {[%clk 0:00:38.1]} 57... Kc5 {[%clk 0:00:09.8]} 58. Kf5
{[%clk 0:00:38.2]} 58... Kd4 {[%clk 0:00:09.5]} 59. Be6 {[%clk 0:00:37.1]} 59...
Ke3 {[%clk 0:00:09.3]} 60. Kg4 {[%clk 0:00:36.6]} 60... Kd4 {[%clk 0:00:08.8]}
61. Kf3 {[%clk 0:00:36.2]} 61... Ke5 {[%clk 0:00:08.3]} 62. Bg4 {[%clk
0:00:35.7]} 62... Kd5 {[%clk 0:00:09.2]} 63. Ke2 {[%clk 0:00:35.7]} 63... Ke4
{[%clk 0:00:09.1]} 64. Bf3+ {[%clk 0:00:34.3]} 64... Kd4 {[%clk 0:00:09.1]} 65.
Bc6 {[%clk 0:00:33.3]} 65... Kc3 {[%clk 0:00:06.9]} 66. Bd5 {[%clk 0:00:33.2]}
66... Kd4 {[%clk 0:00:06.3]} 67. Be6 {[%clk 0:00:32.9]} 67... Kc3 {[%clk
0:00:06.1]} 68. Kf3 {[%clk 0:00:30.6]} 68... Kd4 {[%clk 0:00:06.2]} 69. Kg4
{[%clk 0:00:29.9]} 69... Kc3 {[%clk 0:00:06.6]} 70. Kf5 {[%clk 0:00:29.7]} 70...
Kd4 {[%clk 0:00:06.8]} 71. Bf7 {[%clk 0:00:29.2]} 71... Kc3 {[%clk 0:00:06.8]}
72. Ke4 {[%clk 0:00:29.5]} 72... Kb4 {[%clk 0:00:06.1]} 73. Bc4 {[%clk
0:00:27.5]} 73... Bc1 {[%clk 0:00:05.7]} 74. Kf5 {[%clk 0:00:27]} 74... Bf4
{[%clk 0:00:06.6]} 75. Be6 {[%clk 0:00:25.8]} 75... Bc1 {[%clk 0:00:06.2]} 76.
Ke4 {[%clk 0:00:25.6]} 76... Bf4 {[%clk 0:00:06.4]} 77. Kd4 {[%clk 0:00:25.1]}
77... Bc1 {[%clk 0:00:06.6]} 78. Kd3 {[%clk 0:00:24.7]} 78... Bf4 {[%clk
0:00:07.5]} 79. Kc2 {[%clk 0:00:23.9]} 79... Bb8 {[%clk 0:00:08.3]} 80. Kd3
{[%clk 0:00:22.7]} 80... Bf4 {[%clk 0:00:09.2]} 81. Ke4 {[%clk 0:00:22.8]} 81...
Bb8 {[%clk 0:00:10.1]} 82. Kf5 {[%clk 0:00:22.8]} 82... Bf4 {[%clk 0:00:11]} 83.
Kg4 {[%clk 0:00:22.9]} 83... Bc1 {[%clk 0:00:11.8]} 84. Kh5 {[%clk 0:00:22.8]}
84... Bf4 {[%clk 0:00:12.7]} 85. Kg6 {[%clk 0:00:22.3]} 85... Kc5 {[%clk
0:00:12.9]} 86. Kf5 {[%clk 0:00:21.8]} 86... Kd6 {[%clk 0:00:13.1]} 87. Bc4
{[%clk 0:00:21.4]} 87... Kc5 {[%clk 0:00:13.4]} 88. Kg4 {[%clk 0:00:20.7]} 88...
Kd4 {[%clk 0:00:13.3]} 89. Kf3 {[%clk 0:00:20.8]} 89... Ke5 {[%clk 0:00:13.3]}
90. Kg4 {[%clk 0:00:21]} 90... Ke4 {[%clk 0:00:13.4]} 91. Be6 {[%clk 0:00:20.5]}
91... Kd3 {[%clk 0:00:13.3]} 92. Bf5+ {[%clk 0:00:20.5]} 92... Kc3 {[%clk
0:00:13.2]} 93. Be6 {[%clk 0:00:20.9]} 93... Kd4 {[%clk 0:00:13.6]} 94. Kf3
{[%clk 0:00:21.1]} 94... Ke5 {[%clk 0:00:13.8]} 1/2-1/2

[Event "Early-Titled-Tuesday-Blitz-June-18-2024"]
[Site "Chess.com"]
[Date "2024.06.18"]
[Round "5"]
[White "Acva-Alenok"]
[Black "KoshkaMatrioshka"]
[Result "0-1"]
[WhiteElo "2407"]
[BlackElo "2597"]
[TimeControl "180+1"]
[EndTime "8:59:54 PDT"]
[Termination "KoshkaMatrioshka won on time"]

1. d4 {[%clk 0:02:59.5]} 1... e6 {[%clk 0:02:58.8]} 2. c4 {[%clk 0:03:00]} 2...
f5 {[%clk 0:02:57]} 3. g3 {[%clk 0:02:59.1]} 3... Nf6 {[%clk 0:02:57.3]} 4. Bg2
{[%clk 0:02:59.6]} 4... c6 {[%clk 0:02:56.9]} 5. Nc3 {[%clk 0:02:59.9]} 5... Bb4
{[%clk 0:02:55.9]} 6. Qc2 {[%clk 0:02:40.9]} 6... O-O {[%clk 0:02:53.2]} 7. Bf4
{[%clk 0:02:35.8]} 7... d5 {[%clk 0:02:38.5]} 8. Nh3 {[%clk 0:02:33.7]} 8... Qe7
{[%clk 0:02:32.6]} 9. O-O {[%clk 0:02:31.5]} 9... h6 {[%clk 0:02:23]} 10. cxd5
{[%clk 0:01:52.4]} 10... exd5 {[%clk 0:02:20.8]} 11. Be5 {[%clk 0:01:44.9]}
11... Nbd7 {[%clk 0:02:07]} 12. Nf4 {[%clk 0:01:43.5]} 12... Qe8 {[%clk
0:01:55.4]} 13. Qxf5 {[%clk 0:01:03.3]} 13... Nxe5 {[%clk 0:01:41.6]} 14. Qxe5
{[%clk 0:01:02.5]} 14... Qxe5 {[%clk 0:01:42]} 15. dxe5 {[%clk 0:01:03]} 15...
Ng4 {[%clk 0:01:40.6]} 16. e6 {[%clk 0:00:23.2]} 16... Re8 {[%clk 0:01:26.1]}
17. Ncxd5 {[%clk 0:00:09.9]} 17... cxd5 {[%clk 0:01:24.1]} 18. Nxd5 {[%clk
0:00:10.8]} 18... Bd6 {[%clk 0:01:21.1]} 19. e7 {[%clk 0:00:11]} 19... Nf6
{[%clk 0:01:10.9]} 20. Rfd1 {[%clk 0:00:09.9]} 20... Nxd5 {[%clk 0:01:09.7]} 21.
Bxd5+ {[%clk 0:00:10.8]} 21... Kh8 {[%clk 0:01:02.6]} 22. Bf7 {[%clk 0:00:10.6]}
22... Rxe7 {[%clk 0:01:02.9]} 23. Rxd6 {[%clk 0:00:11.2]} 23... Rxf7 {[%clk
0:01:03.3]} 24. Rd8+ {[%clk 0:00:11.9]} 24... Kh7 {[%clk 0:01:03.2]} 25. Rc1
{[%clk 0:00:12.5]} 25... Re7 {[%clk 0:00:56]} 26. e3 {[%clk 0:00:10.1]} 26...
Rd7 {[%clk 0:00:51.6]} 27. Rdxc8 {[%clk 0:00:04.4]} 27... Rxc8 {[%clk
0:00:51.7]} 28. Rxc8 {[%clk 0:00:04.9]} 28... Rd2 {[%clk 0:00:52.6]} 29. b3
{[%clk 0:00:03]} 29... Rxa2 {[%clk 0:00:52.7]} 30. Rc7 {[%clk 0:00:03.7]} 30...
b5 {[%clk 0:00:51.3]} 31. Rb7 {[%clk 0:00:03.9]} 31... a6 {[%clk 0:00:50.3]} 32.
Rb6 {[%clk 0:00:04.5]} 32... Kg8 {[%clk 0:00:46.5]} 33. Kg2 {[%clk 0:00:05.1]}
33... Kf7 {[%clk 0:00:47.2]} 34. e4 {[%clk 0:00:05.3]} 34... Ke7 {[%clk
0:00:47.7]} 35. Kf3 {[%clk 0:00:05.6]} 35... Kd7 {[%clk 0:00:48.3]} 36. Rb7+
{[%clk 0:00:05.7]} 36... Kc6 {[%clk 0:00:47.2]} 37. Rxg7 {[%clk 0:00:06.3]}
37... Ra3 {[%clk 0:00:47.8]} 38. Rg6+ {[%clk 0:00:06.9]} 38... Kc5 {[%clk
0:00:48.3]} 39. Kf4 {[%clk 0:00:06.5]} 39... Rxb3 {[%clk 0:00:48.7]} 40. Rxa6
{[%clk 0:00:06.5]} 40... Rb2 {[%clk 0:00:44.9]} 41. f3 {[%clk 0:00:06.5]} 41...
Rxh2 {[%clk 0:00:44.7]} 42. e5 {[%clk 0:00:06.1]} 42... b4 {[%clk 0:00:41]} 43.
Ra8 {[%clk 0:00:06.5]} 43... b3 {[%clk 0:00:39.1]} 44. Rb8 {[%clk 0:00:05.5]}
44... b2 {[%clk 0:00:39.2]} 45. Kf5 {[%clk 0:00:05.5]} 45... Kc6 {[%clk
0:00:37]} 46. f4 {[%clk 0:00:05.5]} 46... Kc7 {[%clk 0:00:37.3]} 47. Rb3 {[%clk
0:00:05.9]} 47... Kd7 {[%clk 0:00:37.9]} 48. Kf6 {[%clk 0:00:05.7]} 48... Re2
{[%clk 0:00:35.8]} 49. f5 {[%clk 0:00:05.4]} 49... h5 {[%clk 0:00:36.5]} 50. e6+
{[%clk 0:00:05.5]} 50... Kd6 {[%clk 0:00:37.2]} 51. Kf7 {[%clk 0:00:05.9]} 51...
Re5 {[%clk 0:00:36.7]} 52. Kf6 {[%clk 0:00:03.6]} 52... Re2 {[%clk 0:00:36.3]}
53. e7 {[%clk 0:00:01.8]} 53... Rxe7 {[%clk 0:00:35.2]} 54. Rxb2 {[%clk
0:00:02.3]} 54... Re3 {[%clk 0:00:34.3]} 55. Rg2 {[%clk 0:00:02.9]} 55... Kd5
{[%clk 0:00:32.9]} 56. Kg5 {[%clk 0:00:02.3]} 56... Ke5 {[%clk 0:00:32.1]} 57.
f6 {[%clk 0:00:02.9]} 57... Ke6 {[%clk 0:00:31.8]} 58. Kg6 {[%clk 0:00:02.9]}
58... Rf3 {[%clk 0:00:28.6]} 59. Re2+ {[%clk 0:00:03]} 59... Kd7 {[%clk
0:00:28.1]} 60. f7 {[%clk 0:00:03.4]} 60... Rxg3+ {[%clk 0:00:28.1]} 61. Kf6
{[%clk 0:00:04]} 61... Rf3+ {[%clk 0:00:27]} 62. Kg6 {[%clk 0:00:04.4]} 62...
Rg3+ {[%clk 0:00:27.7]} 63. Kh6 {[%clk 0:00:04.6]} 63... Rf3 {[%clk 0:00:27.7]}
64. Kg7 {[%clk 0:00:04.9]} 64... Rg3+ {[%clk 0:00:27.9]} 65. Kf8 {[%clk
0:00:05.5]} 65... h4 {[%clk 0:00:27]} 66. Rd2+ {[%clk 0:00:04.6]} 66... Ke6
{[%clk 0:00:26.5]} 67. Ke8 {[%clk 0:00:05.2]} 67... Rf3 {[%clk 0:00:25.5]} 68.
Re2+ {[%clk 0:00:05.6]} 68... Kd5 {[%clk 0:00:23.5]} 69. Rh2 {[%clk 0:00:05.5]}
69... Re3+ {[%clk 0:00:21.1]} 70. Kf8 {[%clk 0:00:06.1]} 70... Rf3 {[%clk
0:00:21.6]} 71. Rxh4 {[%clk 0:00:05.1]} 71... Ke6 {[%clk 0:00:20.4]} 72. Re4+
{[%clk 0:00:05.7]} 72... Kf5 {[%clk 0:00:19.4]} 73. Re1 {[%clk 0:00:05.2]} 73...
Kf6 {[%clk 0:00:16.7]} 74. Ke8 {[%clk 0:00:05.2]} 74... Kg7 {[%clk 0:00:15.1]}
75. Rf1 {[%clk 0:00:05.6]} 75... Rxf1 {[%clk 0:00:14.2]} 0-1

[Event "Early-Titled-Tuesday-Blitz-June-18-2024"]
[Site "Chess.com"]
[Date "2024.06.18"]
[Round "5"]
[White "Rodalquilar"]
[Black "RebelJohnny"]
[Result "1-0"]
[WhiteElo "2801"]
[BlackElo "2593"]
[TimeControl "180+1"]
[EndTime "9:00:12 PDT"]
[Termination "Rodalquilar won by checkmate"]

1. d4 {[%clk 0:03:00.9]} 1... d5 {[%clk 0:02:59.5]} 2. Nf3 {[%clk 0:03:01.1]}
2... Nf6 {[%clk 0:02:59]} 3. Bf4 {[%clk 0:03:01.3]} 3... c5 {[%clk 0:02:58.2]}
4. e3 {[%clk 0:03:01.2]} 4... Nc6 {[%clk 0:02:57.2]} 5. c3 {[%clk 0:03:01.5]}
5... Qb6 {[%clk 0:02:57]} 6. Qc2 {[%clk 0:03:01.6]} 6... g6 {[%clk 0:02:39.4]}
7. h3 {[%clk 0:03:01]} 7... Bf5 {[%clk 0:02:36.9]} 8. dxc5 {[%clk 0:03:01]} 8...
Qxc5 {[%clk 0:02:33.3]} 9. Qb3 {[%clk 0:03:01.2]} 9... Na5 {[%clk 0:02:28.7]}
10. Qb5+ {[%clk 0:03:01]} 10... Qxb5 {[%clk 0:02:28.9]} 11. Bxb5+ {[%clk
0:03:01.9]} 11... Bd7 {[%clk 0:02:29.6]} 12. Be2 {[%clk 0:02:39.2]} 12... Bg7
{[%clk 0:02:28.1]} 13. Nbd2 {[%clk 0:02:39.5]} 13... Nc6 {[%clk 0:02:14.2]} 14.
O-O {[%clk 0:02:36.9]} 14... O-O {[%clk 0:02:10.2]} 15. Rfe1 {[%clk 0:02:37.2]}
15... Rfe8 {[%clk 0:02:02.8]} 16. Ne5 {[%clk 0:02:35.1]} 16... Rac8 {[%clk
0:01:15.5]} 17. Rad1 {[%clk 0:02:33.6]} 17... Nxe5 {[%clk 0:01:08.4]} 18. Bxe5
{[%clk 0:02:33.6]} 18... Ba4 {[%clk 0:01:08.9]} 19. Nb3 {[%clk 0:02:26.7]} 19...
e6 {[%clk 0:01:03.9]} 20. Rd4 {[%clk 0:02:26.8]} 20... Bc6 {[%clk 0:01:00.3]}
21. Na5 {[%clk 0:02:23.1]} 21... Nd7 {[%clk 0:00:57.1]} 22. Bxg7 {[%clk
0:02:22.9]} 22... Kxg7 {[%clk 0:00:58]} 23. Rb4 {[%clk 0:02:23.2]} 23... b6
{[%clk 0:00:53.8]} 24. Nxc6 {[%clk 0:02:23.4]} 24... Rxc6 {[%clk 0:00:54.7]} 25.
Bb5 {[%clk 0:02:23.7]} 25... Rc7 {[%clk 0:00:55.3]} 26. e4 {[%clk 0:02:23.2]}
26... dxe4 {[%clk 0:00:46.1]} 27. Rexe4 {[%clk 0:02:23.3]} 27... Rec8 {[%clk
0:00:36.8]} 28. Rbd4 {[%clk 0:02:15.5]} 28... Nf6 {[%clk 0:00:35.3]} 29. Re2
{[%clk 0:02:13.3]} 29... Kf8 {[%clk 0:00:30.5]} 30. Ba6 {[%clk 0:02:07.8]} 30...
Rb8 {[%clk 0:00:28.6]} 31. a4 {[%clk 0:02:07]} 31... Ke7 {[%clk 0:00:28.7]} 32.
Red2 {[%clk 0:02:06]} 32... Rd7 {[%clk 0:00:28.8]} 33. Rxd7+ {[%clk 0:02:00]}
33... Nxd7 {[%clk 0:00:29.7]} 34. Bb5 {[%clk 0:01:56.4]} 34... Nf6 {[%clk
0:00:25.1]} 35. Kf1 {[%clk 0:01:52.9]} 35... Rd8 {[%clk 0:00:25.4]} 36. Rxd8
{[%clk 0:01:51.2]} 36... Kxd8 {[%clk 0:00:26.3]} 37. Ke2 {[%clk 0:01:51.9]}
37... Ke7 {[%clk 0:00:25.8]} 38. g3 {[%clk 0:01:48.6]} 38... Kd6 {[%clk
0:00:26.1]} 39. b4 {[%clk 0:01:47.6]} 39... Ne4 {[%clk 0:00:22.7]} 40. Be8
{[%clk 0:01:29.8]} 40... f5 {[%clk 0:00:19.4]} 41. c4 {[%clk 0:01:27.4]} 41...
Ke7 {[%clk 0:00:07.1]} 42. Bc6 {[%clk 0:01:27.4]} 42... Nf6 {[%clk 0:00:06]} 43.
f4 {[%clk 0:01:01.7]} 43... Kd6 {[%clk 0:00:06.2]} 44. Bf3 {[%clk 0:01:02]}
44... e5 {[%clk 0:00:06.7]} 45. fxe5+ {[%clk 0:01:01.1]} 45... Kxe5 {[%clk
0:00:07.6]} 46. Kd3 {[%clk 0:00:47.5]} 46... g5 {[%clk 0:00:07.9]} 47. c5 {[%clk
0:00:40.7]} 47... bxc5 {[%clk 0:00:08.1]} 48. b5 {[%clk 0:00:41.4]} 48... g4
{[%clk 0:00:05.1]} 49. hxg4 {[%clk 0:00:41.2]} 49... fxg4 {[%clk 0:00:06]} 50.
Bc6 {[%clk 0:00:41.5]} 50... Nd5 {[%clk 0:00:04.7]} 51. Kc4 {[%clk 0:00:40.1]}
51... Nb6+ {[%clk 0:00:04.7]} 52. Kb3 {[%clk 0:00:38.6]} 52... c4+ {[%clk
0:00:03.3]} 53. Ka3 {[%clk 0:00:36.3]} 53... Kd4 {[%clk 0:00:03.6]} 54. a5
{[%clk 0:00:36.6]} 54... Nd5 {[%clk 0:00:02.8]} 55. b6 {[%clk 0:00:31.1]} 55...
axb6 {[%clk 0:00:03.2]} 56. a6 {[%clk 0:00:31.8]} 56... Nc7 {[%clk 0:00:03.9]}
57. a7 {[%clk 0:00:32.2]} 57... Kc3 {[%clk 0:00:02.8]} 58. Ka4 {[%clk
0:00:24.6]} 58... h6 {[%clk 0:00:01]} 59. Ka3 {[%clk 0:00:22.4]} 59... Kd3
{[%clk 0:00:01.2]} 60. Kb2 {[%clk 0:00:21.5]} 60... c3+ {[%clk 0:00:01.4]} 61.
Kc1 {[%clk 0:00:21.9]} 61... h5 {[%clk 0:00:01.8]} 62. Be8 {[%clk 0:00:19.1]}
62... Kc4 {[%clk 0:00:01.6]} 63. Bxh5 {[%clk 0:00:18.7]} 63... b5 {[%clk
0:00:02.2]} 64. Bxg4 {[%clk 0:00:18.1]} 64... b4 {[%clk 0:00:03.1]} 65. Be2+
{[%clk 0:00:17.1]} 65... Kd4 {[%clk 0:00:03.3]} 66. Kc2 {[%clk 0:00:16.3]} 66...
Ke4 {[%clk 0:00:03.9]} 67. Bd1 {[%clk 0:00:10.2]} 67... Ke3 {[%clk 0:00:04.4]}
68. Kb3 {[%clk 0:00:08.7]} 68... Kd2 {[%clk 0:00:05.3]} 69. Bc2 {[%clk
0:00:09.2]} 69... Na8 {[%clk 0:00:05.9]} 70. g4 {[%clk 0:00:08.4]} 70... Nc7
{[%clk 0:00:05.9]} 71. g5 {[%clk 0:00:08.8]} 71... Ne6 {[%clk 0:00:04.5]} 72.
a8=Q {[%clk 0:00:07.3]} 72... Nd4+ {[%clk 0:00:05.2]} 73. Kxb4 {[%clk
0:00:06.4]} 73... Nxc2+ {[%clk 0:00:06.1]} 74. Ka4 {[%clk 0:00:05.2]} 74... Ne3
{[%clk 0:00:05.8]} 75. Qd8+ {[%clk 0:00:05.1]} 75... Kc1 {[%clk 0:00:05.9]} 76.
g6 {[%clk 0:00:04.6]} 76... c2 {[%clk 0:00:05.9]} 77. g7 {[%clk 0:00:04.9]}
77... Nd1 {[%clk 0:00:06.8]} 78. g8=Q {[%clk 0:00:04.4]} 78... Kb1 {[%clk
0:00:07.7]} 79. Qb8+ {[%clk 0:00:03.4]} 79... Nb2+ {[%clk 0:00:08]} 80. Qxb2+
{[%clk 0:00:02]} 80... Kxb2 {[%clk 0:00:08.3]} 81. Qb3+ {[%clk 0:00:02]} 81...
Ka1 {[%clk 0:00:08.3]} 82. Qa3+ {[%clk 0:00:01.6]} 82... Kb1 {[%clk 0:00:08.8]}
83. Qd3 {[%clk 0:00:02.2]} 83... Ka1 {[%clk 0:00:07.5]} 84. Qd2 {[%clk
0:00:02.3]} 84... Kb1 {[%clk 0:00:02.6]} 85. Kb3 {[%clk 0:00:02.3]} 85... c1=Q
{[%clk 0:00:03]} 86. Qa2# {[%clk 0:00:01.7]} 1-0